Cogmind - Beta 17.1 @@@ ROGUE MODE // 2026.08.31 @ 13:48:48 Player: Tuuli Result: Destroyed by Y-45 Defender with Heavy Assault Rifle Performance ------------- Evolutions (0) 0 Regions Visited (3) 600 Robots Destroyed (25) 125 Value Destroyed (467) 467 Prototype IDs (0) 0 Alien Tech Used (0) 0 Bonus (-60) -60 TOTAL SCORE: 1132 Bonus ------- Friendly Fire -60 Cogmind --------- Core Integrity 0/250 Matter 255/300 Energy 100/100 System Corruption 0% Temperature Cool (9) Movement Treading (160) Location -10/Subcaves Parts ------- > --- POWER (1) -------- (None) > --- PROPULSION (2) --- Light Treads Light Treads > --- UTILITY (2) ------ Small Storage Unit Utility Shielding > --- WEAPON (2) ------- Grenade Launcher Hammer > --- INVENTORY (8) ---- Huge Storage Unit Sensor Array Power Shielding Utility Shielding Particle Gun Peak State ------------ > --- POWER ------------ Light Ion Engine > --- PROPULSION ------- Aluminum Leg Aluminum Leg > --- UTILITY ---------- Small Storage Unit Utility Shielding > --- WEAPON ----------- Hammer Mining Claw > --- INVENTORY -------- Light Ion Engine Light Treads Light Treads Particle Gun Mining Claw [Rating: 7] Favorites ----------- Power Light Ion Engine Engine Light Ion Engine Propulsion Aluminum Leg Treads Light Treads Leg Aluminum Leg Utility Small Storage Unit Storage Small Storage Unit Protection Utility Shielding Weapon Hammer Energy Gun EM Pulse Gun Launcher Grenade Launcher Impact Weapon Hammer Slashing Weapon Mining Claw Build | -11 -10 -10 -10 ------- Run | Yrd Mat Min Sub Slots Evolved . | . . . . Power . | . . . . Propulsion . | . . . . Utility . | . . . . Weapon . | . . . . Parts Attached 18 | 7 8 . 3 Power 3 | 2 1 . . Engine 3 | 2 1 . . Core . | . . . . Reactor . | . . . . Propulsion 6 | 2 2 . 2 Treads 2 | . . . 2 Leg 4 | 2 2 . . Wheel . | . . . . Hover . | . . . . Flight . | . . . . Utility 2 | 1 1 . . Device . | . . . . Storage 1 | 1 . . . Processor . | . . . . Hackware . | . . . . Protection 1 | . 1 . . Artifact . | . . . . Weapon 7 | 2 4 . 1 Energy Gun 2 | 2 . . . Energy Cannon . | . . . . Ballistic Gun . | . . . . Ballistic Cannon . | . . . . Launcher 2 | . 1 . 1 Special Weapon . | . . . . Impact Weapon 1 | . 1 . . Slashing Weapon 2 | . 2 . . Piercing Weapon . | . . . . Special Melee Weapon . | . . . . Unidentified Prototypes . | . . . . Parts Lost 9 | . 5 3 1 Power 2 | . 1 . 1 Propulsion 4 | . 2 2 . Utility . | . . . . Weapon 3 | . 2 1 . Highest Loss Streak 3 | . 2 3 1 To Critical Strikes . | . . . . Average Backups 6 | 3 6 8 5 Power . | . . . . Propulsion 1 | 1 2 2 . Utility 1 | . 1 4 4 Weapon 1 | . 1 2 1 Tool/Special . | . . . . Unused Backups 6 | . 1 . 5 Power . | . . . . Propulsion . | . . . . Utility 4 | . . . 4 Weapon 2 | . 1 . 1 Tool/Special . | . . . . Average Slot Usage (%) 93 | . 91 98 96 Engine 13 | . 13 14 12 Treads 5 | . . . 27 Leg 22 | . 27 26 . Storage 14 | . 14 14 14 Protection 9 | . 8 14 14 Energy Gun 2 | . 3 . . Launcher 4 | . 1 14 12 Impact Weapon 11 | . 10 14 14 Slashing Weapon 7 | . 10 . . Peak Build Rating 7 | 6 7 7 7 Average Rating 6 | 4 6 6 6 On Entrance 4 | . 6 7 4 Avg Prop Armor Cover (%) . | . . . . Naked Turns . | . . . . Heaviest Build 14 | 14 14 14 14 Greatest Support 40 | 20 20 20 40 Greatest Overweight (x) 3 | . 1 3 . Average Overweight (x) . | . . . . Largest Inventory Capacity 8 | 8 8 8 8 Average Capacity 7 | 7 8 8 8 Most Carried 8 | 5 8 8 7 Average Carried 5 | 3 6 8 5 Final Capacity 8 | 8 8 8 8 Final Carried 8 | 3 8 8 5 Class Distribution -------------------- 100% | Mutant Dominant Class ---------------- Mutant | -10/Materials Mutant | -10/Mines Mutant | -10/Subcaves Resources | -11 -10 -10 -10 ----------- Run | Yrd Mat Min Sub Matter Collected 415 | 270 80 15 50 Remotely . | . . . . Salvage Created 734 | 162 344 140 88 Parts 36 | 9 16 3 8 Haulers Intercepted . | . . . . Recyclers Shooed 1 | . 1 . . Parts Field Recycled . | . . . . Retrieved Matter . | . . . . Parts Self-Destructed 8 | . . . 8 Prevented . | . . . . Parts Restored . | . . . . Kills | -11 -10 -10 -10 ------- Run | Yrd Mat Min Sub Combat Hostiles Destroyed 16 | . 8 2 6 Melee 3 | . 2 1 . Guns 5 | . 5 . . AOE 7 | . . 1 6 Classes Destroyed 6 | 2 4 . . Worker 1 | . 1 . . Builder 1 | . 1 . . Tunneler 4 | 4 . . . Recycler 3 | 1 1 1 . Swarmer 7 | . 3 . 4 Grunt 9 | . 5 2 2 Best Kill Streak 5 | 5 3 2 4 Combat Bots Only 4 | . 3 1 4 Max Kills in Single Turn 2 | 2 1 2 2 Gunslinging . | . . . . Exploded 2 | . . 1 2 Melee 1 | . 1 1 . Uniques/NPCs Destroyed . | . . . . Combat | -11 -10 -10 -10 -------- Run | Yrd Mat Min Sub Hostile Shots Fired 147 | . 74 28 45 Missed 45 | . 27 6 12 Hits 102 | . 47 22 33 Projectile 102 | . 47 22 33 Critical Strikes 1 | . 1 . . Damage Taken 1219 | 30 569 330 290 Core 256 | . 125 79 52 Absorbed by Shields . | . . . . Redirected to Shielding 13 | . 3 4 6 Core Remaining (%) 100 | 100 . . . Volleys Fired 38 | 9 20 2 7 Largest 2 | 2 2 1 1 Hottest 80 | 80 80 30 30 Shots Fired 51 | 18 24 2 7 Gun 42 | 18 24 . . Cannon . | . . . . Launcher 9 | . . 2 7 Special . | . . . . Kinetic . | . . . . Thermal . | . . . . Explosive 9 | . . 2 7 Electromagnetic 42 | 18 24 . . Robot Hit Streak 8 | 8 6 2 1 Robot Miss Streak 3 | 2 3 1 2 Penetration Max . | . . . . Secondary Targets 1 | . 1 . . Max Gunslinging Chain 1 | . 1 . . Shots Hit Robots 49 | 9 34 5 1 Core Hits 38 | 6 13 8 11 Critical Kills . | . . . . Critical Parts Destroyed 3 | . 3 . . Critical Strikes 4 | . 4 . . Corrupt 1 | . 1 . . Smash 3 | . 3 . . Melee Attacks 37 | . 31 6 . Impact 26 | . 20 6 . Slashing 11 | . 11 . . Piercing . | . . . . Sneak Attacks 4 | . 4 . . Combat Hostiles . | . . . . Follow-up Attacks 4 | . 4 . . Damage Inflicted 1588 | 189 856 243 300 Guns 325 | 118 207 . . Cannons . | . . . . Explosions 585 | 71 58 156 300 Melee 678 | . 591 87 . Ramming . | . . . . Kinetic . | . . . . Thermal 129 | 71 58 . . Explosive 456 | . . 156 300 Electromagnetic 325 | 118 207 . . Impact 541 | . 454 87 . Slashing 137 | . 137 . . Piercing . | . . . . Highest Corruption . | . . . . Average Corruption . | . . . . Corruption Purged . | . . . . Corruption Blocked . | . . . . Overload Shots . | . . . . Overflow Damage 178 | . 178 . . Projectiles . | . . . . Explosions 21 | . 21 . . Melee 157 | . 157 . . Knockbacks 1 | . 1 . . Impact 1 | . 1 . . Kinetic . | . . . . Secondary . | . . . . Self-Inflicted Damage 130 | 30 23 60 17 Shots 5 | 1 1 2 1 Rammed . | . . . . Targets Rammed . | . . . . Kicked . | . . . . Crushed . | . . . . Highest Temperature 84 | 84 84 11 . Average Temperature 26 | 29 26 4 . Received Heat Transfer 498 | . 267 156 75 Siege Activations . | . . . . Martial Activations . | . . . . Shielding Activations . | . . . . Robots Disrupted . | . . . . Combat Hostiles . | . . . . Robots Corrupted 2 | . 2 . . Combat Hostiles 1 | . 1 . . Parts Fried 1 | 1 . . . Impact Corruptions 7 | . 7 . . Robots Melted . | . . . . Combat Hostiles . | . . . . Parts Melted . | . . . . Heat Transferred 100 | 50 50 . . Parts Sabotaged . | . . . . Parts Stolen . | . . . . Parts Stripped . | . . . . Power Chain Reactions 2 | 1 1 . . Alert | -11 -10 -10 -10 ------- Run | Yrd Mat Min Sub Maximum Alert Level . | . . . . Low Security (%) 100 | 100 100 100 . Level 1 . | . . . . Level 2 . | . . . . Level 3 . | . . . . Level 4 . | . . . . Level 5 . | . . . . High Security . | . . . . Max Security . | . . . . Peak Influence 130 | 15 130 50 . Initial 3 | . 3 . . Average 39 | 3 46 14 . Influence Increases 620 | 25 350 70 175 Destroy 0b10 Robot/C 320 | . 160 40 120 Destroy 0b10 Robot/NC 45 | 25 15 5 . Destroy Leader 50 | . 30 10 10 Destroy Structure 25 | . 10 15 . Lose Combat Pursuer 180 | . 135 . 45 Influence Decreases 545 | 20 353 52 120 Entered New Map 15 | . 2 2 11 Time Decay 440 | 20 301 20 99 Lost Part 90 | . 50 30 10 Squads Dispatched 1 | . 1 . . Investigation 1 | . 1 . . Extermination . | . . . . Reinforcement . | . . . . Assault . | . . . . Garrison . | . . . . Intercept . | . . . . Searches Triggered . | . . . . Construction Impeded . | . . . . Haulers Reinforced . | . . . . Active Scanning Responses . | . . . . Cargo Convoy Interrupts . | . . . . Stealth | -11 -10 -10 -10 --------- Run | Yrd Mat Min Sub Distress Signals 4 | . 4 . . Communications Jammed . | . . . . Distress Signals . | . . . . Times Spotted 39 | . 24 4 11 Peak Tracking Total 7 | . 7 3 6 Tactical Retreats 9 | . 8 . 1 Traps | -11 -10 -10 -10 ------- Run | Yrd Mat Min Sub Traps Triggered . | . . . . Indirectly . | . . . . Trap Hack Attempts . | . . . . Triggered . | . . . . Disarmed . | . . . . Reprogrammed . | . . . . Reused . | . . . . Traps Extracted . | . . . . Installed . | . . . . Triggered . | . . . . Machines | -11 -10 -10 -10 ---------- Run | Yrd Mat Min Sub Machines Disabled 1 | . . . 1 Max in Single Turn 1 | . . . 1 Machines Repaired . | . . . . Machines Dismantled . | . . . . Machines Sabotaged . | . . . . Overloaded Fab Kills . | . . . . Hacking | -11 -10 -10 -10 --------- Run | Yrd Mat Min Sub Machines Accessed . | . . . . Terminals . | . . . . Fabricators . | . . . . Repair Stations . | . . . . Recycling Units . | . . . . Scanalyzers . | . . . . Garrison Access . | . . . . Total Hacks . | . . . . Successful . | . . . . Failed . | . . . . Catastrophic . | . . . . Database Lockouts . | . . . . Manual . | . . . . Terminals . | . . . . Fabricators . | . . . . Repair Stations . | . . . . Recycling Units . | . . . . Scanalyzers . | . . . . Garrison Access . | . . . . Terminal Hacks . | . . . . Fabricator Hacks . | . . . . Repair Station Hacks . | . . . . Recycling Unit Hacks . | . . . . Scanalyzer . | . . . . Garrison Access Hacks . | . . . . Unauthorized Hacks . | . . . . Terminals . | . . . . Fabricators . | . . . . Repair Stations . | . . . . Recycling Units . | . . . . Scanalyzers . | . . . . Garrison Access . | . . . . Data Cores Recovered . | . . . . Used . | . . . . Hacking Detections . | . . . . Full Trace Events . | . . . . Feedback Events . | . . . . Feedback Blocked . | . . . . Robot Schematics Acquired . | . . . . Robots Built . | . . . . Authchips . | . . . . Time . | . . . . Total Robot Build Rating . | . . . . Part Schematics Acquired . | . . . . Parts Built . | . . . . Authchips . | . . . . Time . | . . . . Total Part Build Rating . | . . . . Part Studies Acquired . | . . . . Parts Repaired . | . . . . Time . | . . . . Parts Recycled . | . . . . Recycled Matter . | . . . . Retrieved Matter . | . . . . Retrieved Components . | . . . . Parts Scanalyzed . | . . . . Part Schematics Acquired . | . . . . Parts Damaged . | . . . . Bothacking | -11 -10 -10 -10 ------------ Run | Yrd Mat Min Sub Used RIF Installer . | . . . . Robots Hacked . | . . . . Non-combat . | . . . . Combat . | . . . . Robot Hacks Applied . | . . . . Relay Couplers Released . | . . . . Fabnet Peak Effective % . | . . . . Robots Rewired . | . . . . Allies Hacked . | . . . . Hacks Repelled . | . . . . Allies | -11 -10 -10 -10 -------- Run | Yrd Mat Min Sub Total Allies . | . . . . Largest Group . | . . . . Highest-Rated Group . | . . . . Highest-Rated Ally . | . . . . Total Orders . | . . . . Ally Attacks . | . . . . Total Damage . | . . . . Kills . | . . . . Allies Corrupted . | . . . . Allies Melted . | . . . . Intel | -11 -10 -10 -10 ------- Run | Yrd Mat Min Sub Active Infowar (turns) . | . . . . Robot Analysis Total . | . . . . Derelict Logs Recovered . | . . . . Drone Launches . | . . . . Drone Recoveries . | . . . . Exploration | -11 -10 -10 -10 ------------- Run | Yrd Mat Min Sub Turns Passed 1272 | 119 864 74 215 Spaces Moved 822 | 69 593 38 122 Core 12 | 10 . 2 . Treads 122 | . . . 122 Legs 688 | 59 593 36 . Wheels . | . . . . Hover . | . . . . Flight . | . . . . Fastest Speed 50 | 50 120 120 160 Average Speed 125 | 109 120 133 160 Slowest Speed 200 | 120 190 200 160 Overloaded Moves . | . . . . Propulsion Burnouts . | . . . . Robots Hopped . | . . . . Potential Cave-ins . | . . . . Cave-ins Triggered . | . . . . Exploration Rate (%) 29 | 4 82 21 12 Regions Visited 3 Branch Regions 2 Pre-discovered Areas . | . . . . Known Exits Taken . | . . . . Unknown Exits Taken 3 | 1 1 1 . Scrap Searched . | . . . . Spaces Dug . | . . . . Terrain Destroyed 41 | . 10 15 16 Melee . | . . . . Projectile . | . . . . AOE 41 | . 10 15 16 Terrain Rammed . | . . . . Walls Destroyed . | . . . . Machines Disabled . | . . . . Actions | -11 -10 -10 -10 --------- Run | Yrd Mat Min Sub Total 947 | 93 671 49 134 Wait 12 | . 6 4 2 Move 819 | 68 592 37 122 Hop . | . . . . Pick Up 23 | 9 14 . . Fast Attach . | . . . . Attach 15 | 6 6 . 3 Detach . | . . . . Swap 4 | 1 3 . . Drop 4 | . 4 . . Fire 38 | 9 20 2 7 Melee 32 | . 26 6 . Ram . | . . . . Kick . | . . . . Crush . | . . . . Escape Stasis . | . . . . Rewire . | . . . . Trap . | . . . . Miscellaneous . | . . . . Route ------- -11/Scrapyard -10/Materials (discovered 4 exits: [*Mat x3] / [*Min]) -10/Mines -10/Subcaves (discovered 1 exit: [*Mat]) History --------- Turn | Location | Event 5 | -11/Scrapyard | Discovered new exit (range 15) 120 | -11/Scrapyard | Entered Materials 161 | -10/Materials | Discovered new exit (range 8) 320 | -10/Materials | Build established: Mutant 361 | -10/Materials | Discovered new exit (range 3) 495 | -10/Materials | Discovered new exit (range 16) 966 | -10/Materials | Discovered new exit (range 15) 984 | -10/Materials | Entered Mines 1023 | -10/Mines | Core integrity fell below 50% 1044 | -10/Mines | Discovered new exit (range 8) 1058 | -10/Mines | Core integrity fell below 20% 1058 | -10/Mines | Entered Subcaves 1059 | -10/Subcaves | Approached by a straggling Scientist 1086 | -10/Subcaves | Lost 3 parts (2n1w) 1175 | -10/Subcaves | Discovered new exit (range 8) 1273 | -10/Subcaves | Destroyed by Y-45 Defender with Heavy Assault Rifle Last Messages --------------- AMBIENT_HEAT=-10 GOAL=ESCAPE 01059_ VO-19B(c): "Thank the algorithms! I was beginning to lose hope I'd never make it past all the Subs lurking out here." 01062_ VO-19B(c): "Hey, let me tag along and I can get us both out of this nasty situation. At least I think I can... The group I got separated from was talking about a shortcut back to the UFD." 01081_ G-34 Mercenary destroyed. 01083_ G-47 Trooper destroyed. 01084_ Subatomizers dissect the Ion Engine. 01087_ Sml. Laser fries itself beyond repair. 01088_ Acquired 38 matter. 01091_ Acquired 12 matter. 01096_ Ion Engine fries itself beyond repair. VO-19B(c): "I think it's somewhere east of here" 01143_ S-10 Pest destroyed. 01143_ Machine disabled. 01143_ S-10 Pest destroyed. 01175_ EXIT=FOUND 01252_ Lgt. Ion Engine destroyed. Map ----- +----------------------------------------------------+ | ?????????????????????????????????????????????????? | | ?????????????????????????????????????????????????? | | ?????????????????????????????????????????????????? | | ?????????????????????????????????????????????????? | | ?????????????????????????????????????????????????? | | ?????????????????????????????????????????????????? | | ?????????????????????????????????????????????????? | | ?????????????????????????????????????????????????? | | ?????????????????????????????????????????????????? | | ?????????????????????????????????????????????????? | | ?????????????????????????????????????????????????? | | ?????????????????????????????????????????????????? | | ? # ??????????? ????????????????????????????????? | | #??????????# ????????????????????????????????? | | #? "??????# ???????????????????????????????? | | #[ ?????# #???????????????????????????????? | | #%* ?????# #?????????????????????????????### | | = "????## ???????????????????????????? | | ????# ######??????????????????????# | | ""???# # ??????????????????????? | | "??### #?????????????????????? | | % ????# ##???????????????????? | | =%??????# ###???####?????????? | | ?????????# < ##### #########?# #?? | | #????#####??# ### # ## #???? | | #????## #### @ Ys #????? | | ###### # # # # # ## # # ##????? | | ## #### ### #######?????? | | ##??## # #???????????? | | # ## #????# ## ### ##???????????? | | ## # ########## #????# #####?###????????????? | | ?#######????????#### #????# #????????????????????? | | ???????????????????# #??? #????????????????????? | | ???????????????????# ?? #????????????????????? | | ???????????????????######?#?#????????????????????? | | ?????????????????????????????????????????????????? | | ?????????????????????????????????????????????????? | | ?????????????????????????????????????????????????? | | ?????????????????????????????????????????????????? | | ?????????????????????????????????????????????????? | | ?????????????????????????????????????????????????? | | ?????????????????????????????????????????????????? | | ?????????????????????????????????????????????????? | | ?????????????????????????????????????????????????? | | ?????????????????????????????????????????????????? | | ?????????????????????????????????????????????????? | | | | | | | | | +----------------------------------------------------+ Best States ------------- Heat Dissipation 25 Energy Generation 10 Energy Capacity 250 Matter Stores 300 Matter Capacity 300 Sight Range 16 Terrain Scan Density 10 Utility Shielding 33 Evasion (%) 55 Recoil Reduction 2 Item Schematics ----------------- None Robot Schematics ------------------ None Fabricated ------------ Nothing Repaired ---------- Nothing Studied --------- None Alien Tech Used ----------------- None Achievements -------------- Let's See Who's Tougher Challenges ------------ None Game ------ Seed FissionBoltStorm Manual? 0 Play Time 00:10:13 Cumulative 18.1 hours Start 2026.08.31 @ 13:39:56 End 2026.08.31 @ 13:48:48 Sessions 1 Manual Loads 0 Difficulty Rogue Special Mode None Game No. 37 Rogue 36 Adventurer 1 Explorer 0 Win Type - Total 0 Types 0/0/0/0/0/0/0/0/0/0 Lore% 21 Gallery% 23 Achievement% 19 Wizard Run 0 Options --------- Layout 0 ASCII 0 Keyboard 0 Movement Mouse Keybinds 0 Fullscreen 2 Font 18/SmallcapsGlow Map View 38x25 Zoom Use 96% Tactical HUD 1 Map Filters NONE Filters NONE Steam 1 RUN: d23ac71c-c6d7-4db4-be98-9424a65ae1a9